Cogmind - Beta 17 @@@ ROGUE MODE // 2026.06.23 @ 00:38:09 Player: FL-IST Result: Self-destructed Performance ------------- Evolutions (0) 0 Regions Visited (3) 600 Robots Destroyed (43) 215 Value Destroyed (873) 873 Prototype IDs (33) 660 Alien Tech Used (0) 0 Bonus (800) 800 TOTAL SCORE: 3148 Bonus ------- Registered with UFD 300 Met Optimus in HQ 500 Cogmind --------- Core Integrity 35/250 Matter 218/300 Energy 132/2600 System Corruption 0% Temperature Cool (0) Movement Walking (180) Ox1 Location -8/Scraptown Parts ------- > --- POWER (1) -------- MA-1KR's Cyclogen > --- PROPULSION (2) --- Multireflex Exoskeleton (fused) > --- UTILITY (2) ------ (None) > --- WEAPON (2) ------- Improved Heavy Machine Gun (fused) Voltaic Drivehammer > --- INVENTORY (5) ---- Seismic Detector Seismic Detector Scrap Shield Subdweller Shrapnel Launcher Peak State ------------ > --- POWER ------------ MA-1KR's Cyclogen > --- PROPULSION ------- Multireflex Exoskeleton > --- UTILITY ---------- Medium Storage Unit Self-contained Transmogrifier > --- WEAPON ----------- Improved Heavy Machine Gun Voltaic Drivehammer > --- INVENTORY -------- Makeshift Leg Heat Sink Vampiric Humpback Seismic Detector Seismic Detector Scrap Shield Subdweller Shrapnel Launcher Multitool [Rating: 48] Favorites ----------- Power Micro Nuclear Core Engine Improved Deuterium Engine Power Core Micro Nuclear Core Reactor MA-1KR's Cyclogen Propulsion Enhanced Flexi-carbon Leg Treads Light Treads Leg Enhanced Flexi-carbon Leg Wheel Compact Wheel Utility Medium Storage Unit Device Self-contained Transmogrifier Storage Medium Storage Unit Weapon Medium Laser Energy Gun Medium Laser Energy Cannon EM Pulse Cannon Ballistic Gun Enhanced Autogun Ballistic Cannon Heavy Assault Cannon Launcher Grenade Launcher Special Weapon Voltaic Drivehammer Impact Weapon Power Maul Slashing Weapon Greatsword Build | -11 -10 -10 -8 ------- Run | Yrd Mat Sub Scr Slots Evolved . | . . . . Power . | . . . . Propulsion . | . . . . Utility . | . . . . Weapon . | . . . . Parts Attached 27 | 8 7 7 5 Power 3 | 1 1 . 1 Engine 1 | 1 . . . Core 1 | . 1 . . Reactor 1 | . . . 1 Propulsion 6 | 2 1 3 . Treads 3 | 1 . 2 . Leg 1 | . . 1 . Wheel 2 | 1 1 . . Hover . | . . . . Flight . | . . . . Utility 6 | 3 1 1 1 Device 3 | 2 . 1 . Storage 3 | 1 1 . 1 Processor . | . . . . Hackware . | . . . . Protection . | . . . . Artifact . | . . . . Weapon 12 | 2 4 3 3 Energy Gun 6 | 1 4 . 1 Energy Cannon 1 | . . . 1 Ballistic Gun 3 | 1 . 2 . Ballistic Cannon . | . . . . Launcher 1 | . . 1 . Special Weapon 1 | . . . 1 Impact Weapon . | . . . . Slashing Weapon . | . . . . Piercing Weapon . | . . . . Special Melee Weapon . | . . . . Unidentified Prototypes 1 | . . 1 . Parts Lost 3 | . 3 . . Power . | . . . . Propulsion 1 | . 1 . . Utility . | . . . . Weapon 2 | . 2 . . Highest Loss Streak 2 | . 2 . . To Critical Strikes . | . . . . Average Backups 8 | 2 7 9 8 Power . | . . . . Propulsion 2 | 1 2 2 2 Utility 3 | . 1 3 4 Weapon 2 | . 2 2 1 Tool/Special . | . . . . Unused Backups 12 | . . 4 8 Power . | . . . . Propulsion 4 | . . 2 2 Utility 4 | . . . 4 Weapon 3 | . . 2 1 Tool/Special 1 | . . . 1 Average Slot Usage (%) 91 | . 99 91 85 Engine 6 | . 6 4 10 Core 7 | . 7 9 3 Treads 4 | . 14 3 . Leg 14 | . . 20 14 Wheel 3 | . 13 . . Device 13 | . 14 13 14 Storage 13 | . 14 13 14 Energy Gun 8 | . 25 4 5 Energy Cannon 9 | . . 15 5 Ballistic Gun 5 | . 2 1 15 Slashing Weapon 1 | . . 2 . Peak Build Rating 48 | 7 10 40 48 Average Rating 28 | 6 8 32 37 On Entrance 13 | . 7 10 36 Avg Prop Armor Cover (%) 12 | 5 13 13 . Naked Turns . | . . . . Heaviest Build 47 | 12 20 37 47 Greatest Support 58 | 20 20 58 36 Greatest Overweight (x) 6 | . 6 1 1 Average Overweight (x) . | . 1 . . Largest Inventory Capacity 35 | 8 10 10 35 Average Capacity 9 | 7 9 10 10 Most Carried 10 | 4 10 10 10 Average Carried 9 | 2 7 9 9 Final Capacity 10 | 8 10 10 5 Final Carried 10 | 4 10 10 5 Transmogrified Parts 45 | . . 36 9 Integrity Recovered 578 | . . 462 116 Class Distribution -------------------- 94% | Mutant 5% | Gladiator Dominant Class ---------------- Mutant | -10/Materials Mutant | -10/Subcaves Mutant | -8/Scraptown Resources | -11 -10 -10 -8 ----------- Run | Yrd Mat Sub Scr Matter Collected 546 | 295 95 136 20 Remotely 75 | 75 . . . Salvage Created 1320 | 160 511 649 . Parts 99 | 12 39 48 . Haulers Intercepted 1 | . 1 . . Recyclers Shooed 1 | . 1 . . Parts Field Recycled . | . . . . Retrieved Matter . | . . . . Parts Self-Destructed 8 | . . 8 . Prevented 4 | . . 4 . Parts Restored . | . . . . Kills | -11 -10 -10 -8 ------- Run | Yrd Mat Sub Scr Combat Hostiles Destroyed 29 | . 11 18 . Melee 3 | . . 3 . Guns 11 | . 11 . . Cannons 10 | . . 10 . AOE 2 | . . 2 . Classes Destroyed 10 | 2 6 2 . Worker 2 | . 2 . . Builder 1 | . 1 . . Tunneler 6 | 5 1 . . Hauler 1 | . 1 . . Recycler 1 | 1 . . . Watcher 3 | . 3 . . Swarmer 13 | . 6 7 . Grunt 5 | . 5 . . Sentry 1 | . . 1 . Subdweller 10 | . . 10 . Best Kill Streak 5 | 4 5 2 . Combat Bots Only 3 | . 3 2 . Max Kills in Single Turn 2 | 1 2 1 . Gunslinging . | . . . . Exploded 1 | . . 1 . Melee 1 | . . 1 . Uniques/NPCs Destroyed . | . . . . Combat | -11 -10 -10 -8 -------- Run | Yrd Mat Sub Scr Hostile Shots Fired 166 | . 63 77 26 Missed 49 | . 12 26 11 Hits 117 | . 51 51 15 Projectile 117 | . 51 51 15 AOE 1 | . . 1 . Critical Strikes 2 | . 1 1 . Damage Taken 1388 | . 500 716 172 Core 215 | . 71 120 24 Absorbed by Shields . | . . . . Core Remaining (%) 100 | 100 . . . Volleys Fired 119 | 15 45 46 13 Largest 2 | 2 2 2 1 Hottest 138 | 70 100 138 15 Shots Fired 209 | 29 85 82 13 Gun 140 | 29 85 13 13 Cannon 68 | . . 68 . Launcher 1 | . . 1 . Special . | . . . . Kinetic 54 | 15 15 11 13 Thermal 100 | 14 62 24 . Explosive 1 | . . 1 . Electromagnetic 54 | . 8 46 . Robot Hit Streak 29 | 4 9 27 29 Robot Miss Streak 5 | 2 5 3 1 Penetration Max . | . . . . Secondary Targets 1 | . 1 . . Max Gunslinging Chain 1 | . 1 . . Shots Hit Robots 127 | 16 49 54 8 Core Hits 57 | 11 26 19 1 Critical Kills . | . . . . Critical Parts Destroyed . | . . . . Critical Strikes 9 | 3 5 1 . Burn 8 | 3 5 . . Sever 1 | . . 1 . Melee Attacks 12 | . . 12 . Impact . | . . . . Slashing 12 | . . 12 . Piercing . | . . . . Sneak Attacks . | . . . . Combat Hostiles . | . . . . Follow-up Attacks . | . . . . Damage Inflicted 2508 | 179 641 1506 182 Guns 1002 | 179 641 . 182 Cannons 1171 | . . 1171 . Explosions 44 | . . 44 . Melee 291 | . . 291 . Ramming . | . . . . Kinetic 406 | 55 73 96 182 Thermal 988 | 124 495 369 . Explosive . | . . . . Electromagnetic 823 | . 73 750 . Impact . | . . . . Slashing 291 | . . 291 . Piercing . | . . . . Highest Corruption . | . . . . Average Corruption . | . . . . Corruption Purged . | . . . . Corruption Blocked . | . . . . Overload Shots . | . . . . Overflow Damage 53 | . . 53 . Projectiles 5 | . . 5 . Explosions . | . . . . Melee 48 | . . 48 . Knockbacks 1 | . . 1 . Impact . | . . . . Kinetic 1 | . . 1 . Secondary . | . . . . Self-Inflicted Damage . | . . . . Shots . | . . . . Rammed . | . . . . Targets Rammed . | . . . . Kicked . | . . . . Crushed . | . . . . Highest Temperature 299 | 120 279 299 27 Average Temperature 63 | 47 78 49 14 Received Heat Transfer 632 | . 144 368 120 Siege Activations . | . . . . Martial Activations 1 | . . 1 . Total Turns 10 | . . 10 . Longest Duration 10 | . . 10 . Shielding Activations . | . . . . Robots Disrupted . | . . . . Combat Hostiles . | . . . . Robots Corrupted 3 | . . 3 . Combat Hostiles 3 | . . 3 . Parts Fried 8 | . . 8 . Impact Corruptions . | . . . . Robots Melted . | . . . . Combat Hostiles . | . . . . Parts Melted 6 | 2 4 . . Heat Transferred 2973 | 592 1850 531 . Parts Sabotaged . | . . . . Parts Stolen . | . . . . Parts Stripped . | . . . . Power Chain Reactions 1 | . . 1 . Alert | -11 -10 -10 -8 ------- Run | Yrd Mat Sub Scr Maximum Alert Level . | . . . . Low Security (%) 100 | 100 100 . . Level 1 . | . . . . Level 2 . | . . . . Level 3 . | . . . . Level 4 . | . . . . Level 5 . | . . . . High Security . | . . . . Max Security . | . . . . Peak Influence 144 | 15 144 . . Initial . | . . . . Average 61 | 2 71 . . Influence Increases 762 | 30 442 290 . Destroy 0b10 Robot/C 380 | . 220 160 . Destroy 0b10 Robot/NC 70 | 30 40 . . Destroy Leader 68 | . 58 10 . Successful Hack 34 | . 34 . . Select Force Hacks 60 | . 60 . . Disable Machine 15 | . 15 . . Lose Combat Pursuer 135 | . 15 120 . Influence Decreases 762 | 30 403 187 142 Entered New Map 161 | . . 19 142 Time Decay 571 | 30 373 168 . Lost Part 30 | . 30 . . Squads Dispatched 4 | . 4 . . Investigation 3 | . 3 . . Extermination . | . . . . Reinforcement 1 | . 1 . . Assault . | . . . . Garrison . | . . . . Intercept . | . . . . Searches Triggered . | . . . . Construction Impeded . | . . . . Haulers Reinforced . | . . . . Active Scanning Responses . | . . . . Cargo Convoy Interrupts . | . . . . Stealth | -11 -10 -10 -8 --------- Run | Yrd Mat Sub Scr Distress Signals 2 | . 2 . . Communications Jammed . | . . . . Distress Signals . | . . . . Times Spotted 49 | . 20 21 8 Peak Tracking Total 7 | . 4 4 7 Tactical Retreats 7 | . 1 5 1 Traps | -11 -10 -10 -8 ------- Run | Yrd Mat Sub Scr Traps Triggered 2 | . 2 . . Indirectly . | . . . . Trap Hack Attempts . | . . . . Triggered . | . . . . Disarmed . | . . . . Reprogrammed . | . . . . Reused . | . . . . Traps Extracted . | . . . . Installed . | . . . . Triggered . | . . . . Machines | -11 -10 -10 -8 ---------- Run | Yrd Mat Sub Scr Machines Disabled 5 | . 1 1 3 Max in Single Turn 1 | . 1 1 1 Machines Repaired . | . . . . Machines Dismantled . | . . . . Machines Sabotaged . | . . . . Overloaded Fab Kills . | . . . . Hacking | -11 -10 -10 -8 --------- Run | Yrd Mat Sub Scr Machines Accessed 11 | . 7 2 2 Terminals 5 | . 5 . . Fabricators . | . . . . Repair Stations . | . . . . Recycling Units 2 | . 2 . . Scanalyzers . | . . . . Garrison Access . | . . . . Total Hacks 35 | . 23 5 7 Successful 25 | . 13 5 7 Failed 10 | . 10 . . Catastrophic . | . . . . Database Lockouts . | . . . . Manual 24 | . 24 . . Terminals 17 | . 17 . . Fabricators . | . . . . Repair Stations . | . . . . Recycling Units 6 | . 6 . . Scanalyzers . | . . . . Garrison Access . | . . . . Terminal Hacks 16 | . 4 5 7 Record 4 | . . 4 . Part Schematic 1 | . 1 . . Robot Analysis 8 | . 2 . 6 Locate Traps 1 | . 1 . . Proto ID Catalog 2 | . . 1 1 Fabricator Hacks . | . . . . Repair Station Hacks . | . . . . Recycling Unit Hacks 1 | . 1 . . Retrieve Components 1 | . 1 . . Scanalyzer . | . . . . Garrison Access Hacks . | . . . . Unauthorized Hacks 8 | . 8 . . Terminals 6 | . 6 . . Botnet 3 | . 3 . . Skim 3 | . 3 . . Fabricators . | . . . . Repair Stations . | . . . . Recycling Units 2 | . 2 . . Tunnel 2 | . 2 . . Scanalyzers . | . . . . Garrison Access . | . . . . Data Cores Recovered . | . . . . Used . | . . . . Hacking Detections 6 | . 6 . . Full Trace Events 2 | . 2 . . Feedback Events . | . . . . Feedback Blocked . | . . . . Robot Schematics Acquired . | . . . . Robots Built . | . . . . Authchips . | . . . . Time . | . . . . Total Robot Build Rating . | . . . . Part Schematics Acquired 1 | . 1 . . Parts Built . | . . . . Authchips . | . . . . Time . | . . . . Total Part Build Rating . | . . . . Part Studies Acquired . | . . . . Parts Repaired . | . . . . Time . | . . . . Parts Recycled . | . . . . Recycled Matter . | . . . . Retrieved Matter . | . . . . Retrieved Components 3 | . 3 . . Parts Scanalyzed . | . . . . Part Schematics Acquired . | . . . . Parts Damaged . | . . . . Bothacking | -11 -10 -10 -8 ------------ Run | Yrd Mat Sub Scr Used RIF Installer . | . . . . Robots Hacked . | . . . . Non-combat . | . . . . Combat . | . . . . Robot Hacks Applied . | . . . . Relay Couplers Released . | . . . . Fabnet Peak Effective % . | . . . . Robots Rewired . | . . . . Allies Hacked . | . . . . Hacks Repelled . | . . . . Allies | -11 -10 -10 -8 -------- Run | Yrd Mat Sub Scr Total Allies . | . . . . Largest Group . | . . . . Highest-Rated Group . | . . . . Highest-Rated Ally . | . . . . Total Orders . | . . . . Ally Attacks . | . . . . Total Damage . | . . . . Kills . | . . . . Allies Corrupted . | . . . . Allies Melted 4 | . . 1 3 Intel | -11 -10 -10 -8 ------- Run | Yrd Mat Sub Scr Active Infowar (turns) 1425 | 48 1015 362 . Seismic 1425 | 48 1015 362 . Robot Analysis Total 8 | . 2 . 6 Derelict Logs Recovered 3 | . . 1 2 Drone Launches . | . . . . Drone Recoveries . | . . . . Exploration | -11 -10 -10 -8 ------------- Run | Yrd Mat Sub Scr Turns Passed 5263 | 176 1015 2718 1354 Spaces Moved 2741 | 76 555 1242 868 Core 4 | 1 3 . . Treads 167 | 74 3 90 . Legs 1918 | . . 1050 868 Wheels 652 | 1 549 102 . Hover . | . . . . Flight . | . . . . Fastest Speed 50 | 50 95 110 110 Average Speed 116 | 157 106 121 110 Slowest Speed 350 | 160 350 160 180 Overloaded Moves . | . . . . Propulsion Burnouts . | . . . . Robots Hopped . | . . . . Potential Cave-ins . | . . . . Cave-ins Triggered . | . . . . Exploration Rate (%) 64 | 4 92 86 77 Regions Visited 3 Branch Regions 2 Pre-discovered Areas 4 | . 2 1 1 Known Exits Taken . | . . . . Unknown Exits Taken 3 | 1 1 1 . Scrap Searched 21 | . . 15 6 Spaces Dug 1 | . . 1 . Terrain Destroyed 17 | . . 17 . Melee 1 | . . 1 . Projectile 2 | . . 2 . AOE 14 | . . 14 . Terrain Rammed . | . . . . Walls Destroyed . | . . . . Machines Disabled . | . . . . Actions | -11 -10 -10 -8 --------- Run | Yrd Mat Sub Scr Total 4592 | 102 896 2340 1254 Wait 1648 | . 273 1015 360 Move 2738 | 75 554 1241 868 Hop . | . . . . Pick Up 23 | 4 11 7 1 Fast Attach 12 | 7 1 2 2 Attach 3 | . 3 . . Detach . | . . . . Swap 15 | 1 5 6 3 Drop 22 | . 4 11 7 Fire 119 | 15 45 46 13 Melee 12 | . . 12 . Ram . | . . . . Kick . | . . . . Crush . | . . . . Escape Stasis . | . . . . Rewire . | . . . . Trap . | . . . . Miscellaneous . | . . . . Route ------- -11/Scrapyard -10/Materials (discovered 4 exits: [*Mat x2] / [*Min] / *Sub) -10/Subcaves (discovered 3 exits: [*Mat x2] / *Scr) -8/Scraptown (discovered 1 exit: [*Fac]) History --------- Turn | Location | Event 7 | -11/Scrapyard | Discovered new exit (range 15) 177 | -11/Scrapyard | Entered Materials 300 | -10/Materials | Build established: Mutant 344 | -10/Materials | Discovered new exit (range 12) 529 | -10/Materials | Discovered new exit (range 12) 957 | -10/Materials | Discovered new exit (range 11) 1017 | -10/Materials | Discovered new exit (range 5) 1192 | -10/Materials | Entered Subcaves 1193 | -10/Subcaves | Approached by a straggling Scientist 1244 | -10/Subcaves | Visited Clippyterm 1248 | -10/Subcaves | Learned location of Deep Caves (-6) 1248 | -10/Subcaves | Learned Research security intel 1270 | -10/Subcaves | Discovered new exit (range 8) 1275 | -10/Subcaves | Shifting Twisted Machinery released Piercing Trap 1303 | -10/Subcaves | Shifting Twisted Machinery released Sub. Machine Gun 1352 | -10/Subcaves | Shifting Twisted Machinery released Sub. Monowheel 1541 | -10/Subcaves | Visited 4L-MR0's lab 1555 | -10/Subcaves | Found Prototype Device 1555 | -10/Subcaves | Identified Sfc. Transmogrifier 1563 | -10/Subcaves | Found Cargo Legs 1565 | -10/Subcaves | Attached Cargo Legs, gained temporary slots: Utility x2 1764 | -10/Subcaves | Scientist uncovered a shortcut to Scraptown 2828 | -10/Subcaves | Shifting Twisted Machinery released Mak. Light Armor Plating 2938 | -10/Subcaves | A swath of the cavern ceiling suddenly collapsed 3029 | -10/Subcaves | Core integrity fell below 50% 3138 | -10/Subcaves | Discovered new exit (range 10) 3369 | -10/Subcaves | Learned Materials emergency access door positions 3910 | -10/Subcaves | Entered Scraptown 4186 | -8/Scraptown | Discovered new exit (range 13) 4202 | -8/Scraptown | Scanned Subdweller tech in exchange for log data 4208 | -8/Scraptown | Learned location of Warlord (-4) 4253 | -8/Scraptown | Visited Awakened 4287 | -8/Scraptown | Visited CPS Storage 4311 | -8/Scraptown | Visited Scrapoid Research Area 4325 | -8/Scraptown | Visited Red Mages 4333 | -8/Scraptown | Visited The Evicted 4465 | -8/Scraptown | Visited UFD Registry 4465 | -8/Scraptown | Registered with UFD as "Pyrotorch" 4501 | -8/Scraptown | Visited Cartography Club 4522 | -8/Scraptown | Visited Derelict Rescue Squad 4553 | -8/Scraptown | Visited Chapter 10 4567 | -8/Scraptown | Visited DA-N13 Charitable Foundation 4577 | -8/Scraptown | Found DCF Scrap (28 items) 4598 | -8/Scraptown | Visited Analyses Database 4628 | -8/Scraptown | Visited Science Guys 4661 | -8/Scraptown | Visited Curators Association 4695 | -8/Scraptown | Visited Botcube Research 4717 | -8/Scraptown | Visited Junk Cannon Lab 4790 | -8/Scraptown | Met Optimus 4790 | -8/Scraptown | Accepted into 0bPrime 5190 | -8/Scraptown | Civil war broke out across Scraptown 5195 | -8/Scraptown | Found Voltaic Drivehammer 5223 | -8/Scraptown | Core integrity fell below 20% 5247 | -8/Scraptown | Found MA-1KR's Cyclogen 5260 | -8/Scraptown | Found Vmp. Humpback 5264 | -8/Scraptown | Self-destructed Last Messages --------------- 05225_ Slug penetrates 83-CPP(r). 05225_ 83-CPP(r) destroyed. 05225_ Slug penetrates Q4-J3H(j). 05227_ Enclosure breached. 05227_ Slug penetrates Q4-J3H(j). 05232_ Q4-J3H(j) suffers critical hit (Destroy). 05232_ Q4-J3H(j) destroyed. 05236_ Destroyed Autobeam. 05241_ Slug penetrates Machine. 05242_ Enclosure breached. 05245_ X5-42B(p): "We are one!" 05247_ Discarded Deuterium Engine. 05247_ Acquired MA-1KR's Cyclogen. 05259_ Dropped Mak. Leg. 05260_ Acquired Vmp. Humpback. 05261_ Dropped Vmp. Humpback. 05261_ Dropped Med. Storage Unit. 05262_ Discarded Sfc. Transmogrifier. 05262_ Acquired Vmp. Humpback. 05264_ Dropped Vmp. Humpback. Map ----- +----------------------------------------------------+ | "" "" =%/ [=## X"#?????? | | ""# " " ######### #"" "## " "#?????? | | ""# "" "" ""#??????###"" "## """"#?????? | | ""# "" "" ##????????#" "#########?????? | | ""# X"#????????#"" "#?????????????? | | ""# ##????????#"" "##############? | | ""###### ################"" !["## "&&&""""""#? | | """"""""""""""""""""""""""" =!%*"# "" """"""#? | | """"""""""""""""""""""""" !%= " """#? | | =% "## " " "#? | | * !!"## "" [ X"#? | | !%[ = *!%"## "" "#? | | ! = [[=* ==[## ""#? | | % =%[%! # " ""#? | | " """"""""""" """"""""""" """"" ## "" """#? | | # ########### ########### ###### ## """"" """#? | | ##" #" "# ##" """""""""#? | | ##" """##"" ""## ##############? | | ## " &""##!" "]## #?????????????? | | #"| """##"" """##"" ""## #?????????????? | | #" "#?"" """"#" t "# #?????????????? | | #" ""#?###"########" ""## #?????????????? | | #" ""#????????????# " "&## ?????????????? | | #" ""#???????????##"" = | ""## ?????????????? | | #" ""#???????????#" !"=! "# ?????????????? | | #""""""#???????????#### "@" #### ?????????????? | | #""""""#??????????????#"###"#???? ???????????????? | | ?######???????????????###??##????????????????????? | | ?????????????????????????????????????????????????? | | ?????????????????????????????????????????????????? | | ?????????????????????????????????????????????????? | | ?????????????????????????????????????????????????? | | ?????????????????????????????????????????????????? | | ?????????????????????????????????????????????????? | | ?????????????????????????????????????????????????? | | ?????????????????????????????????????????????????? | | ?????????????????????????????????????????????????? | | ?????????????????????????????????????????????????? | | ?????????????????????????????????????????????????? | | ?????????????????????????????????????????????????? | | ?????????????????????????????????????????????????? | | ?????????????????????????????????????????????????? | | ?????????????????????????????????????????????????? | | ?????????????????????????????????????????????????? | | ?????????????????????????????????????????????????? | | ?????????????????????????????????????????????????? | | ?????????????????????????????????????????????????? | | ?????????????????????????????????????????????????? | | ?????????????????????????????????????????????????? | | ?????????????????????????????????????????????????? | +----------------------------------------------------+ Best States ------------- Heat Dissipation 25 Energy Generation 19 Energy Capacity 2600 Matter Stores 300 Matter Capacity 300 Sight Range 16 Terrain Scan Density 10 Evasion (%) 70 Recoil Reduction 2 Item Schematics ----------------- Med. Storage Unit | -10/Materials | Hacked Robot Schematics ------------------ None Fabricated ------------ Nothing Repaired ---------- Nothing Studied --------- None Alien Tech Used ----------------- None Achievements -------------- None Challenges ------------ None Game ------ Seed IonicPoweredJammer Manual? 0 Play Time 00:24:45 Cumulative 418.5 hours Start 2026.06.23 @ 00:10:44 End 2026.06.23 @ 00:38:09 Sessions 1 Manual Loads 0 Difficulty Rogue Special Mode None Game No. 320 Rogue 320 Adventurer 0 Explorer 0 Win Type - Total 27 Types 15/0/8/2/0/0/0/1/1/0 Lore% 89 Gallery% 80 Achievement% 71 Wizard Run 0 Options --------- Layout 1 ASCII 0 Keyboard 0 Movement Numpad Keybinds 0 Fullscreen 1 Font 32/SmallcapsGlow Map View 77x35 Zoom Use 0% Tactical HUD 1 Map Filters NONE Filters NONE Steam 1 RUN: e80d0642-686d-4b69-84d5-5b222c023229